[Event "GER-ch Youth U16 2019"]
[Site "Willingen"]
[Date "2019.06.09"]
[Round "1.1"]
[White "Suvorov, Alexander"]
[Black "Richter, Nils"]
[Result "1-0"]
[ECO "E92"]
[WhiteElo "2325"]
[BlackElo "2115"]
[Annotator "NA RC"]
[PlyCount "99"]
[EventDate "2019.06.07"]
[EventType "swiss"]
[EventRounds "9"]
[EventCountry "GER"]
[SourceTitle "playchess.com"]
[Source "ChessBase"]
[SourceQuality "1"]
[TimeControl "40/5400+30:1800+30"]

1. d4 {[%emt 0:00:00]} Nf6 {[%emt 0:00:00]} 2. c4 {[%emt 0:00:00]} g6 {[%emt 0:00:00]} 3. Nc3 {[%emt 0:00:24]} Bg7 {[%emt 0:00:00]} 4. e4 {[%emt 0:00:22]} d6 {[%emt 0:00:17]} 5. Nf3 {[%emt 0:00:34]} O-O {[%emt 0:00:26]} 6. Be2 {[%emt 0:00:18]} e5 {[%emt 0:00:23]} 7. Be3 {[%emt 0:01:20]} c6 {[%emt 0:00:17]} 8. Qd2 {[%emt 0:08:21]} exd4 {[%emt 0:00:56]} 9. Nxd4 {[%emt 0:04:12]} Re8 {[%emt 0:00:27]} 10. f3 {[%emt 0:03:14]} d5 {[%emt 0:00:40]} 11. exd5 {[%emt 0:04:04]} cxd5 {[%emt 0:01:07]} 12. O-O {[%emt 0:03:08]} Nc6 {[%emt 0:00:36]} 13. Nxc6 {[%emt 0:19:22]} bxc6 {[%emt 0:01:22]} 14. Rad1 {[%emt 0:04:52]} Ba6 {[%emt 0:20:43]} 15. Qc1 {[%emt 0:17:17]} Qe7 {[%emt 0:06:17]} 16. Bd4 {[%emt 0:06:26]} Nh5 {[%emt 0:11:35]} 17. Bxg7 {[%emt 0:02:38]} Nxg7 {[%emt 0:00:02]} 18. Rf2 {[%emt 0:01:24]} Bxc4 {[%emt 0:07:10]} 19. Bxc4 {[%emt 0:00:23]} dxc4 {[%emt 0:00:02]} 20. Ne4 {[%emt 0:00:29]} Red8 {[%emt 0:09:20]} 21. Rxd8+ {[%emt 0:01:25]} Rxd8 {[%emt 0:00:43]} 22. Qxc4 {[%emt 0:01:03]} Rd1+ {[%emt 0:06:02]} 23. Rf1 {[%emt 0:00:06]} Qd8 {[%emt 0:00:41]} 24. Qxc6 {[%emt 0:04:21]} Qd4+ {[%emt 0:00:45]} 25. Nf2 {[%emt 0:00:02]} Rxf1+ {[%emt 0:00:24]} 26. Kxf1 {[%emt 0:00:01]} Nf5 {[%emt 0:00:26]} 27. Qc8+ {[%emt 0:01:25]} Kg7 {[%emt 0:00:05]} 28. Qc3 {[%emt 0:00:11]} Ne3+ {[%emt 0:01:09]} 29. Kg1 {[%emt 0:00:18]} Qxc3 {[%emt 0:00:20]} 30. bxc3 {[%emt 0:00:01]} Kf6 {[%emt 0:02:41]} 31. Ng4+ {[%emt 0:03:45]} Nxg4 {[%emt 0:00:07]} 32. fxg4 {[%emt 0:00:01]} Ke5 {[%emt 0:01:21]} 33. Kf2 {[%emt 0:00:07]} Ke4 {[%emt 0:00:02]} 34. Ke2 {[%emt 0:00:07]} f6 {[%emt 0:02:24]} 35. Kd2 {[%emt 0:02:41]} h5 {[%emt 0:01:16]} 36. gxh5 {[%emt 0:01:16]} gxh5 {[%emt 0:00:05]} 37. g3 {[%emt 0:06:41]} a5 {[%emt 0:03:37]} 38. a4 {[%emt 0:02:51]} f5 {[%emt 0:00:42]} 39. Ke2 {[%emt 0:00:47]} f4 {[%emt 0:00:40]} 40. gxf4 {[%emt 0:01:09]} Kxf4 {[%emt 0:00:03]} 41. Kd3 {[%emt 0:32:06]} h4 {[%emt 0:31:34]} 42. Kd4 {[%emt 0:00:00]} h3 {[%emt 0:00:00]} 43. c4 {[%emt 0:00:00]} Kf3 {[%emt 0:00:00]} 44. c5 {[%emt 0:00:00]} Kg2 {[%emt 0:00:00]} 45. c6 {[%emt 0:00:00]} Kxh2 {[%emt 0:00:00]} 46. c7 {[%emt 0:00:00]} Kg2 {[%emt 0:00:00]} 47. c8=Q {[%emt 0:00:00]} h2 {[%emt 0:00:00]} 48. Qg4+ {[%emt 0:00:00]} Kh1 {[%emt 0:00:00]} 49. Qh4 {[%emt 0:00:00]} Kg2 {[%emt 0:00:00]} 50. Ke4 {normal} 1-0

[Event "GER-ch Youth U16 2019"]
[Site "Willingen"]
[Date "2019.06.09"]
[Round "1.6"]
[White "Gutkin, Ilya"]
[Black "Kopylov, Daniel"]
[Result "1-0"]
[ECO "A13"]
[WhiteElo "2041"]
[BlackElo "2263"]
[Annotator "NA"]
[PlyCount "92"]
[EventDate "2019.06.07"]
[EventType "swiss"]
[EventRounds "9"]
[EventCountry "GER"]
[SourceTitle "playchess.com"]
[Source "ChessBase"]
[SourceQuality "1"]
[TimeControl "40/5400+30:1800+30"]

1. Nf3 {[%emt 0:00:00]} d5 {[%emt 0:01:25]} 2. c4 {[%emt 0:00:00]} e6 {[%emt 0:03:59]} 3. g3 {[%emt 0:01:13]} Nf6 {[%emt 0:00:24]} 4. Bg2 {[%emt 0:00:26]} c5 {[%emt 0:03:35]} 5. cxd5 {[%emt 0:07:32]} exd5 {[%emt 0:02:02]} 6. d4 {[%emt 0:02:36]} Nc6 {[%emt 0:00:22]} 7. O-O {[%emt 0:01:03]} Be7 {[%emt 0:02:43]} 8. dxc5 {[%emt 0:05:05]} Bxc5 {[%emt 0:02:14]} 9. a3 {[%emt 0:00:11]} O-O {[%emt 0:00:52]} 10. Nc3 {[%emt 0:03:39]} h6 {[%emt 0:28:45]} 11. b4 {[%emt 0:09:48]} Be7 {[%emt 0:03:25]} 12. Bb2 {[%emt 0:01:47]} Be6 {[%emt 0:02:48]} 13. Nd4 {[%emt 0:09:23]} Nxd4 {[%emt 0:12:08]} 14. Qxd4 {[%emt 0:00:07]} Qb6 {[%emt 0:03:42]} 15. Qxb6 {[%emt 0:07:51]} axb6 {[%emt 0:00:05]} 16. Rac1 {[%emt 0:02:00]} Rfd8 {[%emt 0:02:11]} 17. Rfd1 {[%emt 0:22:54]} Rac8 {[%emt 0:01:11]} 18. Nb5 {[%emt 0:04:52]} Bd7 {[%emt 0:05:48]} 19. Nc7 {[%emt 0:09:49]} Ba4 {[%emt 0:07:35]} 20. Nxd5 {[%emt 0:03:02]} Nxd5 {[%emt 0:01:51]} 21. Rxd5 {[%emt 0:00:12]} Rxc1+ {[%emt 0:01:10]} 22. Bxc1 {[%emt 0:00:05]} Rc8 {[%emt 0:00:18]} 23. Be3 {[%emt 0:01:36]} Rc2 {[%emt 0:01:19]} 24. Re5 {[%emt 0:00:39]} Rxe2 {[%emt 0:04:06]} 25. Kf1 {[%emt 0:05:44]} Bf6 {[%emt 0:01:02]} 26. Kxe2 {[%emt 0:00:04]} Bxe5 {[%emt 0:00:03]} 27. Kd3 {[%emt 0:01:06]} Bb5+ {[%emt 0:07:41]} 28. Kc2 {[%emt 0:00:06]} Ba4+ {[%emt 0:00:25]} 29. Kd3 {[%emt 0:00:07]} Bb5+ {[%emt 0:00:05]} 30. Kc2 {[%emt 0:00:03]} Ba4+ {[%emt 0:00:02]} 31. Kb1 {[%emt 0:00:10]} Bc7 {[%emt 0:01:28]} 32. Bxb7 {[%emt 0:00:10]} Kf8 {[%emt 0:00:14]} 33. Bd4 {[%emt 0:00:38]} f6 {[%emt 0:00:09]} 34. Kb2 {[%emt 0:00:52]} Ke7 {[%emt 0:00:07]} 35. Kc3 {[%emt 0:00:45]} Ke6 {[%emt 0:00:27]} 36. Be4 {[%emt 0:01:05]} g5 {[%emt 0:01:22]} 37. Bd3 {[%emt 0:01:13]} h5 {[%emt 0:00:47]} 38. h3 {[%emt 0:00:30]} Bc6 {[%emt 0:00:36]} 39. Bc4+ {[%emt 0:00:30]} Kf5 {[%emt 0:00:25]} 40. Bd3+ {[%emt 0:00:18]} Ke6 {[%emt 0:00:07]} 41. h4 {[%emt 0:05:59]} Be8 {[%emt 0:06:04]} 42. Kc4 {[%emt 0:08:31]} Bd8 {[%emt 0:02:30]} 43. Be3 {[%emt 0:05:17]} gxh4 {[%emt 0:02:27]} 44. gxh4 {[%emt 0:00:06]} f5 {[%emt 0:06:42]} 45. Be2 {[%emt 0:02:40]} b5+ {[%emt 0:10:08]} 46. Kc5 {[%emt 0:00:20]} Bxh4 {[%emt 0:04:18] normal} 1-0

[Event "GER-ch Youth U16 2019"]
[Site "Willingen"]
[Date "2019.06.09"]
[Round "1.7"]
[White "Woelk, Tom-Frederic"]
[Black "Biermann, Florian"]
[Result "1-0"]
[ECO "E70"]
[WhiteElo "2239"]
[BlackElo "2018"]
[Annotator "NA"]
[PlyCount "81"]
[EventDate "2019.06.07"]
[EventType "swiss"]
[EventRounds "9"]
[EventCountry "GER"]
[SourceTitle "playchess.com"]
[Source "ChessBase"]
[SourceQuality "1"]
[TimeControl "40/5400+30:1800+30"]

1. d4 {[%emt 0:00:00]} Nf6 {[%emt 0:01:17]} 2. c4 {[%emt 0:00:00]} g6 {[%emt 0:02:11]} 3. Nc3 {[%emt 0:00:00]} Bg7 {[%emt 0:00:14]} 4. e4 {[%emt 0:00:00]} d6 {[%emt 0:00:05]} 5. Bd3 {[%emt 0:00:43]} O-O {[%emt 0:08:35]} 6. Nge2 {[%emt 0:01:00]} e5 {[%emt 0:05:02]} 7. d5 {[%emt 0:00:49]} Nbd7 {[%emt 0:02:43]} 8. O-O {[%emt 0:00:49]} Ne8 {[%emt 0:07:45]} 9. Be3 {[%emt 0:05:03]} f5 {[%emt 0:06:35]} 10. exf5 {[%emt 0:03:40]} gxf5 {[%emt 0:00:13]} 11. f4 {[%emt 0:00:04]} e4 {[%emt 0:02:17]} 12. Bc2 {[%emt 0:00:41]} a5 {[%emt 0:06:36]} 13. a3 {[%emt 0:04:51]} Nc5 {[%emt 0:07:28]} 14. Rb1 {[%emt 0:02:34]} Qe7 {[%emt 0:02:27]} 15. Nd4 {[%emt 0:03:32]} Rf6 {[%emt 0:03:43]} 16. b4 {[%emt 0:04:23]} Na6 {[%emt 0:02:18]} 17. Nce2 {[%emt 0:07:22]} Rh6 {[%emt 0:05:46]} 18. Qe1 {[%emt 0:05:12]} Bf6 {[%emt 0:04:44]} 19. Ba4 {[%emt 0:27:45]} Ng7 {[%emt 0:03:23]} 20. Ng3 {[%emt 0:03:07]} Kh8 {[%emt 0:07:16]} 21. Nde2 {[%emt 0:03:39]} Bd7 {[%emt 0:02:24]} 22. Bxd7 {[%emt 0:00:39]} Qxd7 {[%emt 0:00:06]} 23. Bd4 {[%emt 0:02:29]} Qe7 {[%emt 0:00:48]} 24. Rf2 {[%emt 0:05:13]} Rg8 {[%emt 0:02:14]} 25. Nf1 {[%emt 0:00:40]} Nh5 {[%emt 0:03:06]} 26. Ne3 {[%emt 0:04:13]} Ng7 {[%emt 0:03:56]} 27. Qc3 {[%emt 0:04:39]} axb4 {[%emt 0:03:00]} 28. axb4 {[%emt 0:00:09]} Nb8 {[%emt 0:00:10]} 29. Ng3 {[%emt 0:01:10]} Bxd4 {[%emt 0:01:36]} 30. Qxd4 {[%emt 0:00:30]} Qh4 {[%emt 0:00:35]} 31. Nexf5 {[%emt 0:07:26]} Qxh2+ 32. Kf1 Rg6 {[%emt 0:02:04]} 33. Ne2 {[%emt 0:01:59]} Nd7 {[%emt 0:04:30]} 34. Ne7 {[%emt 0:01:26]} Rf6 {[%emt 0:00:11]} 35. Rb3 {[%emt 0:00:22]} Qh1+ {[%emt 0:01:09]} 36. Ng1 {[%emt 0:00:03]} Qh6 {[%emt 0:00:57]} 37. Rh3 {[%emt 0:00:27]} Nh5 {[%emt 0:00:28]} 38. Nxg8 {[%emt 0:00:08]} Kxg8 {[%emt 0:00:10]} 39. g4 {[%emt 0:00:27]} Rxf4 {[%emt 0:00:55]} 40. Rxh5 {[%emt 0:00:05]} Rxf2+ {[%emt 0:00:07]} 41. Qxf2 {[%emt 0:30:07] normal} 1-0

[Event "GER-ch Youth U16 2019"]
[Site "Willingen"]
[Date "2019.06.09"]
[Round "1.8"]
[White "Huber, Benedikt"]
[Black "Koelle, Tobias"]
[Result "0-1"]
[ECO "E63"]
[WhiteElo "2051"]
[BlackElo "2215"]
[Annotator "NA"]
[PlyCount "53"]
[EventDate "2019.06.07"]
[EventType "swiss"]
[EventRounds "9"]
[EventCountry "GER"]
[SourceTitle "playchess.com"]
[Source "ChessBase"]
[SourceQuality "1"]
[TimeControl "40/5400+30:1800+30"]

1. d4 {[%emt 0:00:00]} Nf6 {[%emt 0:00:00]} 2. c4 {[%emt 0:00:00]} g6 {[%emt 0:00:00]} 3. Nf3 {[%emt 0:00:00]} Bg7 {[%emt 0:00:00]} 4. g3 {[%emt 0:00:52]} O-O {[%emt 0:03:41]} 5. Bg2 {[%emt 0:00:39]} d6 {[%emt 0:00:07]} 6. O-O {[%emt 0:00:07]} Nc6 {[%emt 0:02:06]} 7. Nc3 {[%emt 0:00:15]} a6 {[%emt 0:00:17]} 8. b3 {[%emt 0:00:48]} Rb8 {[%emt 0:00:14]} 9. Nd5 {[%emt 0:00:35]} e6 {[%emt 0:04:23]} 10. Nxf6+ {[%emt 0:01:37]} Bxf6 {[%emt 0:00:09]} 11. Bb2 {[%emt 0:02:07]} b5 {[%emt 0:03:54]} 12. Rc1 {[%emt 0:02:20]} Bb7 {[%emt 0:01:29]} 13. Qd2 {[%emt 0:04:00]} Ne7 {[%emt 0:04:57]} 14. Rfe1 {[%emt 0:06:15]} Bg7 {[%emt 0:05:27]} 15. e4 {[%emt 0:03:40]} bxc4 {[%emt 0:00:41]} 16. bxc4 {[%emt 0:02:23]} Ba8 {[%emt 0:02:33]} 17. Ba3 {[%emt 0:06:03]} Qd7 {[%emt 0:02:22]} 18. Qc2 {[%emt 0:01:32]} f5 {[%emt 0:03:58]} 19. d5 {[%emt 0:15:21]} e5 {[%emt 0:05:40]} 20. c5 {[%emt 0:22:38]} fxe4 {[%emt 0:01:51]} 21. c6 {[%emt 0:00:43]} Qf5 {[%emt 0:00:23]} 22. Nh4 {[%emt 0:01:31]} Qf7 {[%emt 0:01:56]} 23. Bxe4 {[%emt 0:12:17]} Nxd5 {[%emt 0:00:29]} 24. Nf3 {[%emt 0:00:39]} Bh6 {[%emt 0:03:27]} 25. Rb1 {[%emt 0:06:10]} Nf6 {[%emt 0:00:52]} 26. Bd3 {[%emt 0:00:58]} Kg7 {[%emt 0:03:55]} 27. Bc4 {[%emt 0:04:13] normal} 0-1

[Event "GER-ch Youth U16 2019"]
[Site "Willingen"]
[Date "2019.06.09"]
[Round "1.9"]
[White "Stork, Oliver"]
[Black "Fromm, Marius"]
[Result "1/2-1/2"]
[ECO "A01"]
[WhiteElo "2224"]
[BlackElo "2038"]
[Annotator "NA"]
[PlyCount "84"]
[EventDate "2019.06.07"]
[EventType "swiss"]
[EventRounds "9"]
[EventCountry "GER"]
[SourceTitle "playchess.com"]
[Source "ChessBase"]
[SourceQuality "1"]
[TimeControl "40/5400+30:1800+30"]

1. b3 {[%emt 0:00:00]} Nf6 {[%emt 0:04:27]} 2. Bb2 {[%emt 0:00:00]} e6 {[%emt 0:01:13]} 3. Nf3 {[%emt 0:00:37]} Be7 {[%emt 0:01:16]} 4. c4 {[%emt 0:00:20]} c5 {[%emt 0:01:52]} 5. g3 {[%emt 0:00:40]} b6 {[%emt 0:01:12]} 6. Bg2 {[%emt 0:00:10]} Bb7 {[%emt 0:00:12]} 7. O-O {[%emt 0:00:08]} O-O {[%emt 0:00:40]} 8. Nc3 {[%emt 0:01:54]} d5 {[%emt 0:08:43]} 9. e3 {[%emt 0:16:19]} dxc4 {[%emt 0:04:22]} 10. bxc4 {[%emt 0:00:07]} Nc6 {[%emt 0:00:13]} 11. Qe2 {[%emt 0:03:12]} a6 {[%emt 0:08:40]} 12. Ne1 {[%emt 0:11:57]} Qc7 {[%emt 0:02:38]} 13. f4 {[%emt 0:00:26]} Na7 {[%emt 0:01:50]} 14. g4 {[%emt 0:16:57]} b5 {[%emt 0:09:29]} 15. g5 {[%emt 0:02:33]} Nd7 {[%emt 0:06:13]} 16. Ne4 {[%emt 0:04:51]} Rad8 {[%emt 0:17:51]} 17. Nd3 {[%emt 0:08:59]} f5 {[%emt 0:06:51]} 18. gxf6 {[%emt 0:00:11]} Nxf6 {[%emt 0:00:18]} 19. Ndf2 {[%emt 0:13:39]} Qb6 {[%emt 0:03:34]} 20. Rab1 {[%emt 0:02:41]} b4 {[%emt 0:04:32]} 21. d4 {[%emt 0:01:15]} a5 {[%emt 0:05:35]} 22. Kh1 {[%emt 0:03:30]} cxd4 {[%emt 0:00:59]} 23. Bxd4 {[%emt 0:00:06]} Qc7 {[%emt 0:00:51]} 24. Be5 {[%emt 0:01:22]} Qb6 {[%emt 0:00:43]} 25. Rg1 {[%emt 0:00:38]} Nc6 {[%emt 0:00:40]} 26. c5 {[%emt 0:05:21]} Qa7 {[%emt 0:00:02]} 27. Nd6 {[%emt 0:00:30]} Ba8 {[%emt 0:01:45]} 28. Ng4 {[%emt 0:01:25]} Kh8 {[%emt 0:03:16]} 29. Rbc1 {[%emt 0:02:31]} Nxe5 {[%emt 0:00:15]} 30. fxe5 {[%emt 0:00:16]} Nd5 {[%emt 0:01:02]} 31. c6 {[%emt 0:01:51]} Bxd6 {[%emt 0:01:35]} 32. Bxd5 {[%emt 0:00:47]} Bxe5 {[%emt 0:01:44]} 33. Be4 {[%emt 0:00:38]} Qc7 {[%emt 0:00:24]} 34. Rc5 {[%emt 0:00:24]} Bd6 {[%emt 0:00:22]} 35. Rh5 {[%emt 0:00:04]} Rf5 {[%emt 0:00:59]} 36. Bxf5 {[%emt 0:00:50]} exf5 {[%emt 0:00:51]} 37. Rxh7+ {[%emt 0:00:09]} Kg8 {[%emt 0:00:38]} 38. Nf6+ {[%emt 0:00:52]} Kf8 {[%emt 0:00:02]} 39. Rh8+ {[%emt 0:00:39]} Kf7 {[%emt 0:00:24]} 40. Qh5+ {[%emt 0:00:37]} Kxf6 {[%emt 0:00:02]} 41. Qg6+ {[%emt 0:30:31]} Ke5 {[%emt 0:30:41]} 42. Qg3+ {[%emt 0:00:00]} Kd5 {[%emt 0:00:00] normal} 1/2-1/2

[Event "GER-ch Youth U16 2019"]
[Site "Willingen"]
[Date "2019.06.09"]
[Round "1.11"]
[White "Yi, Danny"]
[Black "Hommel, Niclas"]
[Result "1/2-1/2"]
[ECO "B51"]
[WhiteElo "2205"]
[BlackElo "1953"]
[Annotator "NA"]
[PlyCount "97"]
[EventDate "2019.06.07"]
[EventType "swiss"]
[EventRounds "9"]
[EventCountry "GER"]
[SourceTitle "playchess.com"]
[Source "ChessBase"]
[SourceQuality "1"]
[TimeControl "40/5400+30:1800+30"]

1. e4 {[%emt 0:00:00]} c5 {[%emt 0:00:00]} 2. Nf3 {[%emt 0:00:15]} d6 {[%emt 0:00:00]} 3. Bb5+ {[%emt 0:02:05]} Nd7 {[%emt 0:00:00]} 4. O-O {[%emt 0:00:53]} a6 {[%emt 0:00:03]} 5. Bxd7+ {[%emt 0:01:46]} Bxd7 {[%emt 0:00:06]} 6. Re1 {[%emt 0:04:24]} Nf6 {[%emt 0:06:20]} 7. c3 {[%emt 0:09:50]} e6 {[%emt 0:07:23]} 8. d4 {[%emt 0:03:28]} Be7 {[%emt 0:01:11]} 9. e5 {[%emt 0:17:45]} dxe5 {[%emt 0:01:16]} 10. dxe5 {[%emt 0:03:06]} Nd5 {[%emt 0:00:08]} 11. c4 {[%emt 0:01:19]} Nb6 {[%emt 0:07:08]} 12. Qc2 {[%emt 0:01:55]} Bc6 {[%emt 0:11:47]} 13. Nbd2 {[%emt 0:04:11]} Qc7 {[%emt 0:09:50]} 14. Ne4 {[%emt 0:02:19]} h6 {[%emt 0:05:30]} 15. Bf4 {[%emt 0:01:46]} O-O {[%emt 0:03:07]} 16. Qe2 {[%emt 0:09:37]} Nd7 {[%emt 0:06:10]} 17. Rad1 {[%emt 0:02:18]} Rfd8 {[%emt 0:01:56]} 18. h4 {[%emt 0:04:04]} b5 {[%emt 0:06:42]} 19. b3 {[%emt 0:01:04]} bxc4 {[%emt 0:02:46]} 20. bxc4 {[%emt 0:00:09]} Rab8 {[%emt 0:01:44]} 21. h5 {[%emt 0:02:21]} Rb4 {[%emt 0:02:31]} 22. Nd6 {[%emt 0:04:12]} Rdb8 {[%emt 0:06:03]} 23. Nd2 {[%emt 0:01:41]} Bxd6 {[%emt 0:03:07]} 24. exd6 {[%emt 0:00:06]} Qd8 {[%emt 0:02:00]} 25. Nb3 {[%emt 0:02:42]} Ba4 {[%emt 0:00:42]} 26. Ra1 {[%emt 0:04:20]} Qf6 {[%emt 0:04:30]} 27. Bd2 {[%emt 0:04:37]} R4b6 {[%emt 0:00:45]} 28. Ba5 {[%emt 0:00:14]} R6b7 {[%emt 0:01:42]} 29. Bc7 {[%emt 0:00:37]} Rc8 {[%emt 0:00:44]} 30. Qe4 {[%emt 0:01:18]} Rb4 {[%emt 0:01:40]} 31. Rab1 {[%emt 0:01:33]} Qc3 {[%emt 0:04:57]} 32. Rec1 {[%emt 0:01:12]} Qf6 {[%emt 0:00:12]} 33. Qe3 {[%emt 0:04:09]} Bxb3 {[%emt 0:01:26]} 34. Rxb3 {[%emt 0:00:22]} Rxb3 {[%emt 0:01:11]} 35. Qxb3 {[%emt 0:00:28]} e5 {[%emt 0:00:35]} 36. Qb7 {[%emt 0:01:05]} Re8 {[%emt 0:00:01]} 37. Qxa6 {[%emt 0:00:58]} e4 {[%emt 0:00:17]} 38. Qa3 {[%emt 0:01:34]} Qg5 {[%emt 0:01:42]} 39. Re1 {[%emt 0:01:07]} Qxh5 {[%emt 0:00:15]} 40. Qh3 {[%emt 0:01:06]} Qxh3 {[%emt 0:00:59]} 41. gxh3 {[%emt 0:30:05]} f5 {[%emt 0:03:31]} 42. a4 {[%emt 0:00:00]} Kf7 {[%emt 0:04:28]} 43. Rb1 {[%emt 0:00:00]} Ke6 {[%emt 0:04:47]} 44. Rb5 {[%emt 0:00:00]} g5 {[%emt 0:05:51]} 45. a5 {[%emt 0:00:00]} Ra8 {[%emt 0:00:12]} 46. Rb3 {[%emt 0:00:00]} Ne5 {[%emt 0:04:02]} 47. Rc3 {[%emt 0:00:00]} Nf7 {[%emt 0:01:02]} 48. Rb3 {[%emt 0:00:00]} Ne5 {[%emt 0:02:55]} 49. Rb7 {[%emt 0:02:08] normal} 1/2-1/2

[Event "GER-ch Youth U16 2019"]
[Site "Willingen"]
[Date "2019.06.09"]
[Round "1.12"]
[White "Liebold, Aaron"]
[Black "Roehr, Tobias"]
[Result "1-0"]
[ECO "B48"]
[WhiteElo "1870"]
[BlackElo "2208"]
[Annotator "NA"]
[PlyCount "65"]
[EventDate "2019.06.07"]
[EventType "swiss"]
[EventRounds "9"]
[EventCountry "GER"]
[SourceTitle "playchess.com"]
[Source "ChessBase"]
[SourceQuality "1"]
[TimeControl "40/5400+30:1800+30"]

1. e4 {[%emt 0:00:00]} c5 {[%emt 0:00:00]} 2. Nf3 {[%emt 0:00:00]} e6 {[%emt 0:00:00]} 3. d4 {[%emt 0:00:00]} cxd4 {[%emt 0:00:00]} 4. Nxd4 {[%emt 0:00:09]} Nc6 {[%emt 0:00:02]} 5. Nc3 {[%emt 0:00:16]} Qc7 {[%emt 0:00:06]} 6. Be3 {[%emt 0:00:20]} a6 {[%emt 0:00:04]} 7. Qd2 {[%emt 0:00:21]} Nf6 {[%emt 0:02:46]} 8. f3 {[%emt 0:00:56]} b5 {[%emt 0:07:00]} 9. O-O-O {[%emt 0:01:41]} Na5 {[%emt 0:10:50]} 10. Kb1 {[%emt 0:01:58]} Nc4 {[%emt 0:03:06]} 11. Bxc4 {[%emt 0:03:27]} bxc4 {[%emt 0:01:50]} 12. g4 {[%emt 0:01:40]} Rb8 {[%emt 0:05:17]} 13. g5 {[%emt 0:05:55]} Nh5 {[%emt 0:00:27]} 14. Rhf1 {[%emt 0:02:26]} Ba3 {[%emt 0:09:15]} 15. Ndb5 {[%emt 0:05:29]} axb5 {[%emt 0:13:13]} 16. bxa3 {[%emt 0:02:07]} O-O {[%emt 0:02:50]} 17. Qd6 {[%emt 0:08:17]} Qb7 {[%emt 0:02:49]} 18. Bc5 {[%emt 0:04:48]} Re8 {[%emt 0:00:05]} 19. f4 {[%emt 0:04:48]} Ra8 {[%emt 0:02:20]} 20. Rf3 {[%emt 0:10:51]} f6 {[%emt 0:11:28]} 21. Rh3 {[%emt 0:06:13]} Ra6 {[%emt 0:02:31]} 22. Qd2 {[%emt 0:00:45]} g6 {[%emt 0:01:44]} 23. Rxh5 {[%emt 0:03:21]} b4 {[%emt 0:07:16]} 24. axb4 {[%emt 0:02:48]} d6 {[%emt 0:00:24]} 25. Bxd6 {[%emt 0:06:36]} Rd8 {[%emt 0:00:12]} 26. e5 {[%emt 0:03:21]} fxe5 {[%emt 0:00:48]} 27. fxe5 {[%emt 0:01:07]} gxh5 {[%emt 0:00:13]} 28. Ka1 {[%emt 0:01:06]} Qf3 {[%emt 0:04:18]} 29. Rg1 {[%emt 0:03:53]} Ra3 {[%emt 0:07:12]} 30. Kb2 {[%emt 0:03:00]} Ra7 {[%emt 0:00:32]} 31. g6 {[%emt 0:01:05]} Bb7 {[%emt 0:01:38]} 32. gxh7+ {[%emt 0:04:20]} Kxh7 {[%emt 0:00:09]} 33. Qg5 {[%emt 0:00:04] normal} 1-0

[Event "GER-ch Youth U16 2019"]
[Site "Willingen"]
[Date "2019.06.09"]
[Round "1.13"]
[White "Post, Hugo"]
[Black "Buller, Ian Joshua"]
[Result "1-0"]
[ECO "B90"]
[WhiteElo "2113"]
[BlackElo "1904"]
[Annotator "NA"]
[PlyCount "42"]
[EventDate "2019.06.07"]
[EventType "swiss"]
[EventRounds "9"]
[EventCountry "GER"]
[SourceTitle "playchess.com"]
[Source "ChessBase"]
[SourceQuality "1"]
[TimeControl "40/5400+30:1800+30"]

1. e4 {[%emt 0:00:00]} c5 {[%emt 0:00:00]} 2. Nf3 {[%emt 0:00:00]} d6 {[%emt 0:00:00]} 3. d4 {[%emt 0:00:00]} cxd4 {[%emt 0:00:00]} 4. Nxd4 {[%emt 0:00:00]} Nf6 {[%emt 0:00:02]} 5. Nc3 {[%emt 0:00:08]} a6 {[%emt 0:00:08]} 6. Be3 {[%emt 0:00:51]} e6 {[%emt 0:00:11]} 7. Be2 {[%emt 0:00:48]} Nbd7 {[%emt 0:00:24]} 8. g4 {[%emt 0:08:47]} Nc5 {[%emt 0:17:27]} 9. f3 {[%emt 0:02:07]} h6 {[%emt 0:10:41]} 10. Qd2 {[%emt 0:04:14]} b5 {[%emt 0:01:08]} 11. a3 {[%emt 0:03:00]} Bb7 {[%emt 0:04:57]} 12. O-O-O {[%emt 0:01:45]} d5 {[%emt 0:34:25]} 13. exd5 {[%emt 0:10:59]} Nxd5 {[%emt 0:01:03]} 14. Nxd5 {[%emt 0:00:32]} Bxd5 {[%emt 0:05:05]} 15. Rhe1 {[%emt 0:03:52]} Rc8 {[%emt 0:02:25]} 16. Kb1 {[%emt 0:03:09]} Be7 {[%emt 0:01:04]} 17. Nf5 {[%emt 0:03:59]} O-O {[%emt 0:05:23]} 18. Nxg7 {[%emt 0:08:42]} Bg5 {[%emt 0:01:43]} 19. Nh5 {[%emt 0:04:08]} Bxe3 {[%emt 0:01:01]} 20. Qxe3 {[%emt 0:00:07]} Kh7 {[%emt 0:04:06]} 21. Qd4 {[%emt 0:02:57]} f6 {[%emt 0:01:02] normal} 1-0